bitfinex-derivatives/quotes_SOLF0:USTF0_20260121
["timestamp","ask_amount","ask_price","bid_price","bid_amount"]
[1768999994526,1.58383469,127.23,127.16,3.28870217]
[1768999996125,7.0823,127.21,127.16,3.28870217]
[1769000001830,7.0829,127.2,127.16,3.28870217]
[1769000002531,1.58383469,127.23,127.16,3.28870217]
[1769000003130,7.0823,127.21,127.16,3.28870217]
[1769000010636,0.05723207,127.2,127.16,3.28870217]
[1769000012439,0.05723207,127.2,127.16,10.37370217]
[1769000012830,0.05723207,127.2,127.16,20.18465292]
[1769000013032,7.0823,127.21,127.16,20.18465292]
[1769000014540,0.05213331,127.2,127.16,20.18465292]
[1769000016142,0.05213331,127.2,127.17,9.81095075]
[1769000017141,0.05213331,127.2,127.17,13.25102544]
[1769000017339,8.66553469,127.23,127.17,20.33542544]
[1769000018342,7.0817,127.22,127.17,13.25102544]
[1769000018543,7.0817,127.22,127.19,0.05418301]
[1769000022559,7.0825,127.21,127.19,0.05418301]
[1769000022744,7.0825,127.21,127.17,13.25102544]
[1769000023848,7.0825,127.21,127.18,0.0496091]
[1769000025053,7.13481872,127.21,127.18,0.0496091]
[1769000025557,7.13481872,127.21,127.18,9.86055985]
[1769000026852,0.05231872,127.21,127.18,9.86055985]
[1769000029956,7.0812,127.23,127.18,0.0496091]
[1769000032758,0.05860461,127.22,127.18,0.0496091]
[1769000034956,1.58383469,127.24,127.18,3.36441128]
[1769000035761,8.66463469,127.24,127.18,3.36441128]
[1769000037474,0.05170471,127.22,127.18,3.36441128]
[1769000039367,0.05170471,127.22,127.18,13.17536203]
[1769000040163,0.05170471,127.22,127.19,3.33015717]
[1769000040866,0.05170471,127.22,127.18,9.86055985]
[1769000041569,0.05170471,127.22,127.18,20.27461702]
[1769000041858,0.05170471,127.22,127.19,13.14110792]
[1769000042061,1.58383469,127.24,127.19,9.81095075]
[1769000042262,23.63,127.27,127.21,3.33015717]
[1769000042263,1.58383469,127.27,127.21,3.33015717]
[1769000042859,1.58299255,127.28,127.21,3.33015717]
[1769000043268,1.58299255,127.28,127.23,0.05125723]
[1769000043756,0.06003649,127.27,127.23,0.05125723]
[1769000043953,7.13903649,127.27,127.23,0.05125723]
[1769000048867,7.13903649,127.27,127.23,3.3814144]
[1769000049463,7.13903649,127.27,127.23,0.05125723]
[1769000050164,0.06003649,127.27,127.23,0.05125723]
[1769000058777,7.13933649,127.27,127.23,0.05125723]
[1769000059378,7.0795,127.26,127.21,3.33015717]
[1769000059676,7.0795,127.26,127.2,16.89375075]
[1769000059677,1.58299255,127.26,127.2,9.81095075]
[1769000059876,1.58299255,127.26,127.2,13.00173335]
[1769000060377,133.7337,127.29,127.21,3.1907826]
[1769000060378,7.0794,127.27,127.21,3.1907826]
[1769000060773,0.0525893,127.24,127.22,0.05805352]
[1769000064284,7.0794,127.27,127.22,0.05805352]
[1769000065380,0.05440953,127.26,127.22,0.05805352]
[1769000067480,0.05440953,127.26,127.22,3.24883612]
[1769000070279,7.13410953,127.26,127.22,3.24883612]
[1769000079785,0.05440953,127.26,127.22,3.24883612]
[1769000083190,0.05440953,127.26,127.22,13.05978687]
[1769000086290,0.05440953,127.26,127.23,9.81095075]
[1769000088194,0.05440953,127.26,127.24,3.27215548]
[1769000088894,7.0785,127.28,127.24,3.27215548]
[1769000089188,1.58299255,127.3,127.24,3.27215548]
[1769000089586,1.58299255,127.3,127.25,3.27215548]
[1769000089892,206.43687756,127.31,127.26,0.05001749]
[1769000090894,206.43687756,127.31,127.26,3.32217297]
[1769000091195,1.58299255,127.32,127.26,3.32217297]
[1769000092887,7.0769,127.31,127.26,3.32217297]
[1769000094591,0.03340855,127.3,127.26,3.32217297]
[1769000097686,7.0762,127.32,127.26,3.32217297]
[1769000098086,7.0751,127.34,127.28,3.19507432]
[1769000098881,7.0751,127.34,127.3,3.25457344]
[1769000099085,7.0745,127.36,127.3,3.25457344]
[1769000099290,1.58299255,127.37,127.3,3.25457344]
[1769000099894,1.58299255,127.35,127.3,3.25457344]
[1769000100993,7.0751,127.34,127.3,0.05949912]
[1769000102199,7.0758,127.33,127.3,0.05949912]
[1769000107501,110.0256,127.38,127.3,3.25457344]
[1769000107697,1.58112552,127.37,127.3,3.25457344]
[1769000107898,1.58112552,127.37,127.3,3.19507432]
[1769000108103,7.074,127.36,127.32,0.0538916]
[1769000114307,1.58112552,127.37,127.32,3.24896592]
[1769000114507,7.0734,127.38,127.32,3.24896592]
[1769000115008,7.0724,127.39,127.33,3.19507432]
[1769000115609,7.0724,127.39,127.35,0.05920718]
[1769000115794,1.58112552,127.4,127.35,0.05920718]
[1769000115795,7.0729,127.38,127.35,0.05920718]
[1769000116202,23.62,127.42,127.35,3.43685148]
[1769000116503,111.57092552,127.42,127.35,3.43685148]
[1769000116904,1.58112552,127.38,127.3,3.3776443]
[1769000118008,8.65402552,127.38,127.33,0.05405816]
[1769000122011,7.0735,127.37,127.33,0.05405816]
[1769000122217,1.58112552,127.36,127.3,3.3776443]
[1769000123414,1.58112552,127.36,127.32,0.05522389]
[1769000126816,0.05033665,127.35,127.32,0.05522389]
[1769000129918,7.0733,127.38,127.32,3.43286819]
[1769000130122,7.0733,127.38,127.32,3.3776443]
[1769000131319,1.58112552,127.39,127.34,3.43104201]
[1769000131520,1.58112552,127.39,127.34,0.05339771]
[1769000131824,1.58112552,127.37,127.31,3.3776443]
[1769000132927,1.58112552,127.37,127.33,0.04987845]
[1769000133421,8.65452552,127.37,127.31,3.3776443]
[1769000133627,1.58112552,127.35,127.3,16.88825075]
[1769000133819,1.58112552,127.35,127.3,10.4549443]
[1769000134019,1.58112552,127.35,127.3,20.26589505]
[1769000134221,1.58112552,127.35,127.3,13.18859505]
[1769000134621,1.58112552,127.35,127.31,0.05790131]
[1769000136724,1.58112552,127.35,127.31,3.43554561]
[1769000138723,7.13356703,127.36,127.31,3.43554561]
[1769000140822,7.13356703,127.36,127.31,13.24649636]
[1769000141325,0.05956703,127.36,127.31,13.24649636]
[1769000141527,0.05956703,127.36,127.32,3.3776443]
[1769000142920,7.13356703,127.36,127.31,9.86885206]
[1769000144026,7.13356703,127.36,127.31,13.24649636]
[1769000148434,0.05956703,127.36,127.31,9.86885206]
[1769000149834,0.05956703,127.36,127.31,5.206e-05]
[1769000149835,1.58112552,127.35,127.31,5.206e-05]
[1769000150033,1.58112552,127.35,127.28,18.00231841]
[1769000150840,1.58112552,127.35,127.28,3.34324154]
[1769000151139,7.0757,127.33,127.3,0.05107927]
[1769000151336,7.12768568,127.33,127.3,0.05107927]
[1769000152242,8.7088112,127.33,127.3,0.05107927]
[1769000154143,0.05198568,127.33,127.3,0.05107927]
[1769000159946,7.12768568,127.33,127.3,0.05107927]
[1769000163943,0.05198568,127.33,127.3,3.52938925]
[1769000164454,7.074,127.36,127.3,3.52938925]
[1769000164656,7.074,127.36,127.3,3.47830998]
[1769000165655,7.074,127.36,127.32,0.05001265]
[1769000170363,8.65370641,127.38,127.32,0.05001265]
[1769000172364,8.65370641,127.38,127.32,3.52832263]
[1769000172860,1.58050641,127.4,127.33,3.47830998]
[1769000173559,1.58050641,127.4,127.35,0.05476499]
[1769000174065,8.65230641,127.4,127.35,0.05476499]
[1769000184376,0.05736881,127.39,127.35,0.05476499]
[1769000184864,0.05736881,127.39,127.35,3.39338371]
[1769000194069,0.05736881,127.39,127.35,10.46788371]
[1769000194279,8.65110641,127.42,127.36,3.33861872]
[1769000195367,8.65110641,127.42,127.38,0.05151227]
[1769000196367,7.0706,127.42,127.38,0.05151227]
[1769000196566,1.58050641,127.46,127.38,3.39013099]
[1769000196776,1.58050641,127.46,127.38,3.33861872]
[1769000196972,1.58050641,127.46,127.41,0.06030072]
[1769000197176,0.05050445,127.43,127.41,0.06030072]
[1769000201375,1.63101086,127.43,127.37,3.33861872]
[1769000201777,8.70111086,127.43,127.37,3.33861872]
[1769000202383,8.70111086,127.43,127.39,0.05455942]
[1769000202673,7.0706,127.42,127.39,0.05455942]
[1769000204088,8.65190641,127.41,127.34,3.33861872]
[1769000205284,8.65190641,127.41,127.32,1.58050641]
[1769000205285,0.04954851,127.39,127.36,0.06021871]
[1769000208086,0.04954851,127.39,127.36,3.34713795]
[1769000220399,1.63005492,127.39,127.33,3.14234201]
[1769000220697,1.58050641,127.37,127.33,3.14234201]
[1769000221592,1.58050641,127.37,127.34,0.05559709]
[1769000222494,1.6372492,127.37,127.34,0.05559709]
[1769000224898,0.05674279,127.37,127.34,0.05559709]
[1769000225494,7.13024279,127.37,127.31,12.83818943]
[1769000225702,7.13024279,127.37,127.31,3.14234201]
[1769000226699,7.13024279,127.37,127.33,0.05023557]
[1769000227007,1.58051863,127.36,127.31,3.14234201]
[1769000227994,7.0746,127.35,127.31,3.14234201]
[1769000228203,7.0746,127.35,127.32,0.04977672]
[1769000228404,0.05370519,127.34,127.32,0.04977672]
[1769000236616,7.0734,127.37,127.32,3.45879873]
[1769000236807,7.0734,127.37,127.32,3.40902201]
[1769000237816,7.0734,127.37,127.33,0.05905632]
[1769000244325,1.58051863,127.36,127.33,0.05905632]
[1769000249226,8.65341863,127.38,127.33,0.05905632]
[1769000249430,8.65341863,127.38,127.32,3.40902201]
[1769000249630,8.65341863,127.38,127.34,0.05989391]
[1769000252535,8.65281863,127.4,127.34,3.46891592]
[1769000252830,0.05920975,127.38,127.34,3.40902201]
[1769000253020,0.05920975,127.38,127.36,0.05453135]
[1769000255031,147.7359,127.44,127.36,0.05453135]
[1769000255331,1.58051863,127.42,127.35,3.40902201]
[1769000255935,7.0714,127.41,127.35,3.40902201]
[1769000256234,7.0714,127.41,127.37,0.05933981]
[1769000257023,7.0718,127.4,127.37,0.05933981]
[1769000257530,7.13136088,127.4,127.37,0.05933981]
[1769000264742,0.05956088,127.4,127.37,3.46836182]
[1769000264940,1.58051863,127.44,127.37,3.46836182]
[1769000265945,7.0707,127.42,127.37,3.46836182]
[1769000266146,7.12091919,127.42,127.37,3.46836182]
[1769000266934,0.05021919,127.42,127.37,3.46836182]
[1769000269344,0.05021919,127.42,127.37,10.54156182]
[1769000269646,0.05021919,127.42,127.38,3.28803255]
[1769000273752,0.05021919,127.42,127.37,3.34737236]
[1769000274544,7.12121919,127.42,127.37,3.34737236]
[1769000275747,1.63073782,127.42,127.37,0.05933981]
[1769000276746,7.0719,127.4,127.37,0.05933981]
[1769000279552,7.0719,127.4,127.35,3.28803255]
[1769000280651,7.0719,127.4,127.36,0.05925422]
[1769000280854,0.05231438,127.39,127.36,0.05925422]
[1769000281849,7.12471438,127.39,127.36,0.05925422]
[1769000282248,0.05231438,127.39,127.36,0.05925422]
[1769000287156,7.12471438,127.39,127.36,0.05925422]
[1769000287453,7.12471438,127.39,127.33,3.23116235]
[1769000288452,7.12471438,127.39,127.35,0.05094002]
[1769000290357,7.0729,127.38,127.35,0.05094002]
[1769000294860,7.0734,127.37,127.35,0.05094002]
[1769000295056,0.05231438,127.39,127.35,0.05094002]
[1769000295660,7.12501438,127.39,127.35,0.05094002]
[1769000300771,0.05231438,127.39,127.35,0.05094002]
[1769000308677,7.12471438,127.39,127.35,0.05094002]
[1769000335008,0.05231438,127.39,127.35,0.05094002]
[1769000341307,7.0711,127.42,127.35,3.37832053]
[1769000341604,212.09862834,127.45,127.36,3.32738051]
[1769000341904,212.09862834,127.45,127.37,3.32738051]
[1769000342506,0.05915726,127.42,127.4,0.05263955]
[1769000346601,7.0695,127.45,127.4,0.05263955]
[1769000349917,133.536,127.51,127.4,3.38002006]
[1769000350112,1.57819517,127.49,127.41,3.32738051]
[1769000350410,1.57819517,127.49,127.44,0.05640811]
[1769000352914,7.0678,127.48,127.44,0.05640811]
[1769000354414,7.12364373,127.47,127.44,0.05640811]
[1769000354616,7.12364373,127.47,127.42,3.32738051]
[1769000355717,7.12364373,127.47,127.43,0.05061432]
[1769000355917,8.7018389,127.47,127.43,0.05061432]
[1769000358831,8.7018389,127.47,127.43,0.05061432]
[1769000369337,8.7018389,127.47,127.43,3.52483633]
[1769000373641,7.0684,127.46,127.43,3.52483633]
[1769000374839,1.57819517,127.45,127.37,3.47422201]
[1769000375638,1.57819517,127.45,127.39,3.47422201]
[1769000376035,1.57819517,127.45,127.41,0.05174842]
[1769000376942,8.64749517,127.45,127.41,0.05174842]
[1769000380042,133.5103,127.49,127.36,11.27404259]
[1769000380043,1.57819517,127.42,127.36,13.17006943]
[1769000380345,1.57819517,127.42,127.36,3.47422201]
[1769000382947,8.64879517,127.42,127.36,3.47422201]
[1769000383639,8.64879517,127.42,127.37,3.47422201]
[1769000384542,8.64879517,127.42,127.37,13.17006943]
[1769000385341,1.57819517,127.42,127.37,13.17006943]
[1769000386439,1.57819517,127.42,127.37,20.24326943]
[1769000388550,1.57819517,127.42,127.38,7.0728]
[1769000389744,1.57819517,127.45,127.39,10.36308121]
[1769000390250,1.57819517,127.45,127.37,20.05952863]
[1769000390450,1.57819517,127.43,127.37,20.05952863]
[1769000390654,1.57819517,127.43,127.37,12.98662863]
[1769000390957,1.57819517,127.43,127.38,7.0728]
[1769000391645,0.05349252,127.42,127.38,7.0728]
[1769000391850,0.05349252,127.42,127.39,0.05366735]
[1769000396743,1.57819517,127.44,127.39,3.34444856]
[1769000400353,1.57819517,127.42,127.39,0.05366735]
[1769000404161,1.57819517,127.42,127.37,9.69584742]
[1769000404464,1.57819517,127.42,127.36,17.85212392]
[1769000404465,1.57819517,127.4,127.35,12.88889447]
[1769000405963,7.0723,127.39,127.35,12.88889447]
[1769000407261,7.0717,127.41,127.36,3.24323908]
[1769000409763,7.0717,127.41,127.37,3.19304705]
[1769000410464,0.05657023,127.4,127.37,3.19304705]
[1769000410664,7.0724,127.39,127.36,0.05019203]
[1769000411356,0.05657023,127.4,127.36,0.05019203]
[1769000411764,0.05657023,127.4,127.36,3.24323908]
[1769000412065,0.05657023,127.4,127.37,3.19304705]
[1769000413569,7.12827023,127.4,127.37,3.19304705]
[1769000415266,0.05657023,127.4,127.37,3.19304705]
[1769000416065,7.0706,127.42,127.37,3.19304705]
[1769000417676,7.0706,127.42,127.38,0.05422074]
[1769000420373,7.0714,127.41,127.38,0.05422074]
[1769000423570,8.65096001,127.4,127.34,19.90737186]
[1769000423977,8.65096001,127.4,127.35,3.13642444]
[1769000424172,7.0724,127.39,127.35,3.13642444]
[1769000424670,8.65096001,127.4,127.36,0.05788308]
[1769000428580,8.65096001,127.4,127.36,9.7537305]
[1769000431579,7.0718,127.4,127.36,9.7537305]
[1769000435484,7.0723,127.39,127.36,0.05788308]
[1769000435781,1.57916001,127.38,127.34,9.69584742]
[1769000436680,7.0736,127.37,127.34,9.69584742]
[1769000436882,7.0736,127.37,127.35,0.05838545]
[1769000437069,7.0736,127.37,127.33,12.83227186]
[1769000438281,0.05844231,127.36,127.33,12.83227186]
[1769000441991,0.05844231,127.36,127.33,3.13642444]
[1769000442973,0.05844231,127.36,127.31,12.83227186]
[1769000443987,110.0002,127.41,127.32,3.13642444]
[1769000443988,7.0728,127.39,127.32,3.13642444]
[1769000444187,1.57916001,127.4,127.33,3.13642444]
[1769000444486,110.0002,127.41,127.33,3.13642444]
[1769000444487,7.0723,127.39,127.33,3.13642444]
[1769000444884,7.0723,127.39,127.34,3.13642444]
[1769000445085,7.0716,127.41,127.35,3.13642444]
[1769000447376,7.0716,127.41,127.36,3.44723397]
[1769000451677,8.65076001,127.41,127.36,3.44723397]
[1769000455194,8.65076001,127.41,127.36,13.14308139]
[1769000455395,1.57916001,127.41,127.35,9.69584742]
[1769000455693,1.57916001,127.41,127.34,9.69584742]
[1769000455993,1.57916001,127.39,127.33,13.14308139]
[1769000456492,7.073,127.38,127.33,13.14308139]
[1769000461194,7.073,127.38,127.34,3.14853096]
[1769000461589,7.0721,127.4,127.35,3.14853096]
[1769000461787,109.9733,127.44,127.36,3.14853096]
[1769000461788,1.57916001,127.44,127.36,3.14853096]
[1769000462100,7.0707,127.42,127.37,3.14853096]
[1769000462299,1.57916001,127.44,127.37,3.14853096]
[1769000462502,214.62228796,127.46,127.38,3.14853096]
[1769000464013,7.0696,127.44,127.38,10.22093096]
[1769000465715,8.64876001,127.44,127.38,3.14853096]
[1769000466119,7.0696,127.44,127.38,3.14853096]
[1769000466312,8.64876001,127.44,127.38,3.14853096]
[1769000466815,7.0696,127.44,127.38,3.14853096]
[1769000467312,1.57916001,127.43,127.36,19.91827838]
[1769000467516,1.57916001,127.43,127.36,10.22243096]
[1769000468814,7.07,127.44,127.38,3.14853096]
[1769000470120,7.07,127.44,127.38,10.22123096]
[1769000472224,1.5786254,127.45,127.39,3.14853096]
[1769000474015,8.6476254,127.45,127.39,3.14853096]
[1769000477526,8.6476254,127.45,127.39,12.84437838]
[1769000477913,7.0697,127.44,127.39,3.14853096]
[1769000478529,7.0701,127.43,127.39,3.14853096]
[1769000478724,1.5786254,127.43,127.38,9.69584742]
[1769000479029,1.5786254,127.43,127.37,12.9626521]
[1769000480128,7.0711,127.42,127.37,12.9626521]
[1769000480427,7.0714,127.41,127.37,9.69584742]
[1769000481125,8.6500254,127.41,127.37,9.69584742]
[1769000481727,1.5786254,127.41,127.37,9.69584742]
[1769000481928,1.5786254,127.41,127.35,17.92588155]
[1769000481929,1.5786254,127.41,127.36,9.69584742]
[1769000483026,7.0718,127.4,127.36,12.9626521]
[1769000483828,7.0712,127.42,127.37,3.26680468]
[1769000484025,1.5786254,127.45,127.38,3.26680468]
[1769000484228,1.5786254,127.45,127.39,3.26680468]
[1769000485429,7.0701,127.43,127.39,3.26680468]
[1769000485932,8.6479254,127.45,127.39,3.26680468]
[1769000487231,8.6479254,127.45,127.4,5.80216751]
[1769000487429,8.6479254,127.45,127.41,5.80216751]
[1769000487631,8.6479254,127.45,127.42,5.80216751]
[1769000487833,8.6479254,127.45,127.39,12.9626521]
[1769000488437,8.6479254,127.45,127.4,3.26680468]
[1769000489320,1.5786254,127.45,127.4,3.26680468]
[1769000489525,8.6468254,127.47,127.4,12.9626521]
[1769000490026,8.6468254,127.47,127.41,0.05650531]
[1769000490222,8.6468254,127.47,127.42,3.26680468]
[1769000490223,0.05295876,127.45,127.42,3.26680468]
[1769000490424,7.0682,127.47,127.43,12.9626521]
[1769000491028,7.0673,127.48,127.43,12.9626521]
[1769000491625,7.0673,127.48,127.44,0.05297837]
[1769000491829,0.05125016,127.47,127.44,0.05297837]
[1769000497834,0.05125016,127.47,127.44,9.74882579]
[1769000498243,0.05125016,127.47,127.44,0.05297837]
[1769000499742,0.05125016,127.47,127.45,5.76406936]
[1769000499930,0.05125016,127.47,127.46,5.76406936]
[1769000500136,0.05125016,127.47,127.44,0.05297837]
[1769000512150,0.05125016,127.47,127.45,5.75029915]
[1769000512340,0.05125016,127.47,127.46,5.75029915]
[1769000512540,0.05125016,127.47,127.44,0.05297837]
[1769000513946,1.62987556,127.47,127.41,3.13586775]
[1769000515044,8.69777556,127.47,127.41,3.13586775]
[1769000515746,1.62987556,127.47,127.41,10.20706775]
[1769000515947,1.62987556,127.47,127.42,3.13586775]
[1769000517452,1.62987556,127.47,127.42,10.20636775]
[1769000517842,0.05125016,127.47,127.43,3.3936293]
[1769000518147,1.5786254,127.49,127.43,3.3936293]
[1769000519053,1.5786254,127.49,127.43,10.4636293]
[1769000520164,1.5786254,127.47,127.43,3.3936293]
[1769000520347,1.5786254,127.47,127.42,10.4642293]
[1769000521659,1.5786254,127.47,127.43,10.4637293]
[1769000521954,1.5786254,127.49,127.43,3.3936293]
[1769000523059,8.6454254,127.49,127.43,3.3936293]
[1769000524254,8.6454254,127.49,127.42,16.76644742]
[1769000524255,1.5786254,127.47,127.42,16.76644742]
[1769000524553,1.5786254,127.45,127.41,9.69584742]
[1769000524756,1.5786254,127.45,127.4,9.69584742]
[1769000525543,1.5786254,127.43,127.4,9.69584742]
[1769000525744,1.5786254,127.43,127.39,3.3936293]
[1769000525948,1.5786254,127.43,127.38,9.69584742]
[1769000526152,1.5786254,127.43,127.37,13.08947672]
[1769000526359,1.5786254,127.43,127.38,9.69584742]
[1769000526554,1.5786254,127.43,127.37,13.08947672]
[1769000526863,109.9398,127.48,127.37,13.08947672]
[1769000526864,1.5786254,127.41,127.37,13.08947672]
[1769000527060,1.5786254,127.41,127.37,3.3936293]
[1769000527859,1.5786254,127.41,127.37,10.4669293]
[1769000528055,1.5786254,127.43,127.37,10.4669293]
[1769000529549,1.5786254,127.43,127.37,3.3936293]
[1769000529861,1.5786254,127.39,127.34,13.08947672]
[1769000530155,1.5786254,127.39,127.34,3.3936293]
[1769000530962,7.0713,127.41,127.34,3.3936293]
[1769000531260,1.58012042,127.4,127.34,3.3936293]
[1769000533363,8.65182042,127.4,127.34,3.3936293]
[1769000534666,133.5538,127.44,127.34,3.3936293]
[1769000534667,1.58012042,127.41,127.35,3.3936293]
[1769000535266,8.65132042,127.41,127.35,3.3936293]
[1769000538557,1.58012042,127.39,127.33,12.93229931]
[1769000538760,1.58012042,127.39,127.33,3.23645189]
[1769000539972,8.65282042,127.39,127.33,3.23645189]
[1769000540863,1.58012042,127.39,127.33,3.23645189]
[1769000541664,7.0734,127.37,127.33,3.23645189]
[1769000541866,1.58012042,127.39,127.33,3.23645189]
[1769000542971,7.074,127.36,127.33,3.23645189]
[1769000546671,7.0733,127.38,127.33,3.23645189]
[1769000548280,7.0734,127.37,127.33,3.23645189]
[1769000549073,7.0747,127.35,127.31,12.93229931]
[1769000549275,111.60612042,127.38,127.31,3.23645189]
[1769000550874,7.0747,127.35,127.31,3.23645189]
[1769000552983,7.0751,127.34,127.31,3.23645189]
[1769000553387,7.0751,127.34,127.26,9.69584742]
[1769000553388,111.65632042,127.32,127.26,3.23645189]
[1769000553581,110.092,127.3,127.24,3.23645189]
[1769000553880,7.08,127.26,127.22,3.23645189]
[1769000554276,1.58012042,127.3,127.22,3.23645189]
[1769000554982,110.088,127.31,127.22,4.81657231]
[1769000555182,110.088,127.31,127.23,3.23645189]
[1769000557085,7.0779,127.29,127.23,3.23645189]
[1769000557489,1.58012042,127.3,127.23,3.23645189]
[1769000558886,7.0787,127.28,127.23,3.23645189]
[1769000559785,221.72272042,127.33,127.24,3.23645189]
[1769000560889,7.0768,127.31,127.25,3.23645189]
[1769000564193,7.0764,127.32,127.28,3.23645189]
[1769000564394,111.62332042,127.36,127.28,3.23645189]
[1769000565993,7.0756,127.33,127.28,3.23645189]
[1769000567990,1.58012042,127.36,127.28,3.23645189]
[1769000568596,1.58012042,127.36,127.31,0.05880206]
[1769000569988,8.65462042,127.36,127.31,3.48940141]
[1769000570300,1.58012042,127.36,127.31,3.48940141]
[1769000571000,7.0745,127.35,127.31,3.48940141]
[1769000576505,0.05742839,127.34,127.31,3.48940141]
[1769000580508,7.0757,127.33,127.31,0.05880206]
[1769000580813,1.63754881,127.34,127.27,3.25064717]
[1769000581207,1.58012042,127.34,127.27,3.25064717]
[1769000581707,110.0511,127.35,127.27,3.25064717]
[1769000581708,7.0768,127.31,127.27,3.25064717]
[1769000582616,0.05134246,127.3,127.28,0.05555517]
[1769000583114,8.70886288,127.3,127.23,10.33124717]
[1769000583306,1.58012042,127.28,127.24,3.25064717]
[1769000584413,0.05449069,127.27,127.25,0.05593574]
[1769000584613,0.05449069,127.27,127.22,3.25064717]
[1769000585313,0.05449069,127.27,127.23,3.25064717]
[1769000585818,1.58012042,127.28,127.23,3.25064717]
[1769000586119,1.58012042,127.28,127.24,0.05819935]
[1769000587117,0.05010208,127.27,127.24,0.05819935]
[1769000590122,1.58012042,127.26,127.21,307.39244717]
[1769000590418,1.58012042,127.26,127.22,3.25064717]
[1769000591018,0.05010208,127.27,127.22,3.25064717]
[1769000591813,0.05010208,127.27,127.23,0.05361788]
[1769000594225,7.0767,127.32,127.23,3.30426505]
[1769000594420,8.65970013,127.32,127.24,3.25064717]
[1769000594623,1.58300013,127.32,127.24,3.25064717]
[1769000595422,0.06047631,127.29,127.24,3.25064717]
[1769000596015,0.06047631,127.29,127.25,10.32639695]
[1769000598018,0.06047631,127.29,127.25,3.24639695]
[1769000598223,0.06047631,127.29,127.23,20.02284437]
[1769000598722,0.06047631,127.29,127.24,3.24639695]
[1769000600322,0.06047631,127.29,127.24,12.94224437]
[1769000601424,1.58300013,127.28,127.23,9.69584742]
[1769000602024,1.58300013,127.28,127.24,0.04972369]
[1769000606227,8.66150013,127.28,127.24,0.04972369]
[1769000608029,0.06047631,127.29,127.24,3.29612064]
[1769000608523,0.06047631,127.29,127.24,12.99196806]
[1769000608929,0.06047631,127.29,127.25,3.24639695]
[1769000611231,7.0764,127.32,127.27,3.24639695]
[1769000613335,7.0769,127.31,127.27,3.24639695]
[1769000613536,1.58300013,127.35,127.28,3.30218225]
[1769000614927,1.58300013,127.33,127.28,0.0557853]
[1769000615330,0.0506165,127.32,127.25,3.24639695]
[1769000615931,7.0778,127.29,127.25,3.24639695]
[1769000616633,0.05001687,127.28,127.25,3.24639695]
[1769000617641,7.12851687,127.28,127.25,3.24639695]
[1769000617941,7.12851687,127.28,127.25,0.05506718]
[1769000620447,0.05001687,127.28,127.25,0.05506718]
[1769000623943,7.12851687,127.28,127.25,0.05506718]
[1769000625045,7.0791,127.27,127.23,9.69584742]
[1769000627252,7.0791,127.27,127.24,0.05324274]
[1769000627751,7.0791,127.27,127.24,9.74909016]
[1769000628947,7.0797,127.26,127.24,9.74909016]
[1769000629550,7.0797,127.26,127.25,9.69584742]
[1769000630948,0.05001687,127.28,127.24,13.02759741]
[1769000631952,7.079,127.27,127.24,13.02759741]
[1769000632253,0.05001687,127.28,127.24,13.02759741]
[1769000632444,0.05001687,127.28,127.24,9.74909016]
[1769000634056,7.0797,127.26,127.24,9.74909016]
[1769000640657,7.12881687,127.28,127.24,9.74909016]
[1769000640864,7.12881687,127.28,127.25,9.69584742]
[1769000641064,7.12881687,127.28,127.25,12.88369218]
[1769000641761,0.05001687,127.28,127.26,3.18784476]
[1769000641963,110.0797,127.32,127.26,12.88369218]
[1769000642266,113.34794067,127.32,127.26,12.88369218]
[1769000643055,0.05676068,127.3,127.26,12.88369218]
[1769000643364,7.13456068,127.3,127.26,12.88369218]
[1769000643966,7.13456068,127.3,127.27,0.05662856]
[1769000644460,7.13456068,127.3,127.27,3.24447332]
[1769000649377,0.05676068,127.3,127.27,3.24447332]
[1769000649972,7.0765,127.32,127.27,3.24447332]
[1769000650370,11.9266408,127.34,127.27,3.24447332]
[1769000650777,3.26824067,127.33,127.27,3.24447332]
[1769000651875,10.34384067,127.33,127.27,3.24447332]
[1769000652980,11.92536357,127.33,127.27,3.24447332]
[1769000653575,4.84976357,127.33,127.28,3.18784476]
[1769000653882,0.05245929,127.32,127.28,3.18784476]
[1769000655381,3.26824067,127.33,127.28,3.18784476]
[1769000655382,3.38223621,127.35,127.28,3.18784476]
[1769000656586,3.38223621,127.35,127.3,0.05443062]
[1769000659279,3.38223621,127.35,127.3,3.39294533]
[1769000659779,4.96375911,127.35,127.3,0.05443062]
[1769000662489,12.03825911,127.35,127.3,0.05443062]
[1769000662695,3.38223621,127.34,127.3,0.05443062]
[1769000665994,0.05465375,127.33,127.3,0.05443062]
[1769000670398,0.05465375,127.33,127.3,3.39294533]
[1769000670587,0.05465375,127.33,127.3,10.47014533]
[1769000670786,4.96375911,127.36,127.31,3.33851471]
[1769000671096,3.38223621,127.36,127.31,3.33851471]
[1769000671900,3.38223621,127.36,127.31,10.41521471]
[1769000672698,3.38223621,127.36,127.32,7.0762]
[1769000673290,3.38223621,127.36,127.33,0.0554123]
[1769000674199,3.38223621,127.38,127.33,7.1309123]
[1769000674396,3.38223621,127.4,127.34,3.33851471]